bitfinex/quotes_BTCUSD_20251226
["timestamp","ask_amount","ask_price","bid_price","bid_amount"]
[1766785892863,0.01144,87655.0,87643.0,0.01140992]
[1766785893347,0.01144,87655.0,87642.0,0.01141005]
[1766785893550,0.01144,87655.0,87643.0,0.01140992]
[1766785894178,0.01144,87655.0,87646.0,0.01140953]
[1766785894383,0.01144,87655.0,87645.0,0.01140966]
[1766785894620,0.01144,87655.0,87646.0,0.01140953]
[1766785895609,0.01144,87655.0,87645.0,0.01140966]
[1766785899684,0.01144,87655.0,87644.0,0.06845868]
[1766785900586,0.01144,87655.0,87645.0,0.01140966]
[1766785901384,0.01144,87655.0,87646.0,0.01140953]
[1766785906263,0.01144,87655.0,87647.0,0.0114094]
[1766785906635,0.01144,87655.0,87645.0,0.06845762]
[1766785907647,0.01144,87655.0,87647.0,0.0114094]
[1766785908371,0.01144,87655.0,87646.0,0.01140953]
[1766785908597,0.01144,87655.0,87647.0,0.0114094]
[1766785909394,0.01144,87655.0,87646.0,0.01140953]
[1766785909694,0.01144,87655.0,87648.0,0.05704636]
[1766785909859,0.01144,87655.0,87648.0,0.01140927]
[1766785910062,0.01144,87655.0,87641.0,0.01141018]
[1766785910379,0.01144,87655.0,87645.0,0.01140966]
[1766785910610,0.01144,87655.0,87646.0,0.01140953]
[1766785910774,0.01144,87655.0,87645.0,0.01140966]
[1766785912517,0.01144,87655.0,87646.0,0.01140953]
[1766785912812,0.01144,87655.0,87645.0,0.01140966]
[1766785913222,0.01144,87655.0,87646.0,0.01140953]
[1766785913586,0.01144,87655.0,87645.0,0.01140966]
[1766785914617,0.01144,87655.0,87646.0,0.01140953]
[1766785915370,0.000549,87646.0,87643.0,0.01140992]
[1766785915516,0.000549,87646.0,87642.0,0.02285005]
[1766785915930,0.01144,87655.0,87642.0,0.01144]
[1766785917313,0.082,87655.0,87642.0,0.01144]
[1766785920633,0.07056,87654.0,87638.0,0.04109371]
[1766785920837,0.00055,87638.0,87635.0,0.01144]
[1766785921076,0.07056,87638.0,87632.0,0.04109371]
[1766785921275,0.07056,87638.0,87630.0,0.01144]
[1766785923271,0.07056,87638.0,87630.0,0.02285161]
[1766785923736,0.07056,87638.0,87631.0,0.01080385]
[1766785923862,0.07056,87638.0,87630.0,0.02285161]
[1766785924353,0.07056,87638.0,87630.0,0.01144]
[1766785924738,0.07056,87638.0,87628.0,0.01141187]
[1766785925531,0.07056,87638.0,87627.0,0.011412]
[1766785925938,0.07056,87638.0,87626.0,0.02285213]
[1766785926541,0.07056,87638.0,87627.0,0.011412]
[1766785927511,0.07056,87638.0,87626.0,0.02285213]
[1766785927847,0.07056,87638.0,87627.0,0.011412]
[1766785928147,0.07056,87638.0,87626.0,0.02285213]
[1766785928351,0.07056,87638.0,87627.0,0.011412]
[1766785928938,0.07056,87638.0,87626.0,0.01144]
[1766785929156,0.07056,87637.0,87626.0,0.01089]
[1766785932009,0.01141122,87633.0,87615.0,0.03428694]
[1766785932208,0.01141122,87633.0,87589.0,0.45667358]
[1766785932209,0.08197357,87615.0,87606.0,0.06164056]
[1766785932410,0.07056,87613.0,87594.0,0.01144]
[1766785932636,0.07056,87609.0,87599.0,0.10910836]
[1766785933426,0.07056,87609.0,87599.0,4.079e-05]
[1766785933632,0.07170164,87609.0,87599.0,4.079e-05]
[1766785933834,0.07056,87607.0,87599.0,4.079e-05]
[1766785936176,0.06963055,87606.0,87599.0,7.9e-07]
[1766785936383,0.07335,87605.0,87599.0,7.9e-07]
[1766785941383,0.072801,87605.0,87599.0,7.9e-07]
[1766785941584,0.01144,87608.0,87599.0,7.9e-07]
[1766785949253,0.08479,87608.0,87599.0,7.9e-07]
[1766785951146,0.01141474,87606.0,87599.0,7.9e-07]
[1766785951367,0.07335,87605.0,87599.0,7.9e-07]
[1766785955351,0.08476487,87605.0,87599.0,7.9e-07]
[1766785955777,0.08476487,87605.0,87594.0,7.9e-07]
[1766785955977,0.08476487,87605.0,87589.0,0.01144]
[1766785956171,0.07335,87603.0,87588.0,0.01144]
[1766785956414,0.07335,87603.0,87587.0,0.01144]
[1766785956875,0.07335,87603.0,87588.0,0.01141708]
[1766785957092,0.07335,87603.0,87587.0,0.01141721]
[1766785957439,0.07335,87603.0,87588.0,0.01141708]
[1766785959326,0.07335,87603.0,87586.0,0.02285734]
[1766785959530,0.07335,87603.0,87588.0,0.01141708]
[1766785959733,0.07335,87603.0,87587.0,0.01141721]
[1766785960755,0.07335,87603.0,87588.0,0.01141708]
[1766785960992,0.07335,87603.0,87587.0,0.01141721]
[1766785961115,0.07335,87603.0,87588.0,0.01141708]
[1766785961318,0.07313788,87603.0,87588.0,0.01141708]
[1766785961513,0.07313788,87603.0,87593.0,0.0002]
[1766785962792,0.07313788,87603.0,87588.0,0.01144]
[1766785963116,0.07313788,87603.0,87586.0,0.02285734]
[1766785963591,0.07313788,87603.0,87587.0,0.01141721]
[1766785964273,0.07313788,87603.0,87588.0,0.01141708]
[1766785964439,0.02035,87602.0,87588.0,0.01141708]
[1766785965839,0.02035,87602.0,87586.0,0.07994378]
[1766785966537,0.02035,87602.0,87588.0,0.01141708]
[1766785966744,0.02035,87602.0,87587.0,0.01141721]
[1766785967746,0.02035,87602.0,87588.0,0.01141708]
[1766785968135,0.02035,87602.0,87587.0,0.01141721]
[1766785968562,0.44814315,87600.0,87587.0,0.01141721]
[1766785969166,0.4952404,87600.0,87588.0,0.01141708]
[1766785969487,0.4952404,87600.0,87586.0,0.02285734]
[1766785969646,0.4952404,87600.0,87587.0,0.01141721]
[1766785971392,0.44814315,87600.0,87587.0,0.01141721]
[1766785972398,0.44814315,87600.0,87588.0,0.01141708]
[1766785972575,0.44814315,87600.0,87587.0,0.01141721]
[1766785975325,0.44814315,87600.0,87588.0,0.01141708]
[1766785975512,0.44814315,87600.0,87587.0,0.01141721]
[1766785976268,0.4952404,87600.0,87587.0,0.01141721]
[1766785977269,0.4952404,87600.0,87588.0,0.01141708]
[1766785977471,0.4952404,87600.0,87587.0,0.01141721]
[1766785978126,0.44814315,87600.0,87588.0,0.01141708]
[1766785978425,0.44814315,87600.0,87587.0,0.01141721]
[1766785979175,0.44814315,87600.0,87586.0,0.02285734]
[1766785979376,0.44814315,87600.0,87587.0,0.01141721]
[1766785980784,0.44814315,87600.0,87588.0,0.01141708]
[1766785981107,0.44814315,87600.0,87589.0,0.01141695]
[1766785981978,0.06929883,87608.0,87590.0,0.01141682]
[1766785982182,0.44814315,87600.0,87590.0,0.01141682]
[1766785982527,0.44814315,87600.0,87596.0,0.11410836]
[1766785982722,0.44814315,87606.0,87596.0,0.11410836]
[1766785984044,0.44814315,87606.0,87596.0,0.11355936]
[1766785984246,0.45955789,87606.0,87587.0,0.01141721]
[1766785984466,0.01141487,87605.0,87586.0,0.02285734]
[1766785984650,0.44814315,87600.0,87586.0,0.02285734]
[1766785984851,0.44814315,87600.0,87588.0,0.01141708]
[1766785985672,0.44814315,87600.0,87589.0,0.01141695]
[1766785986334,0.44814315,87600.0,87590.0,0.01141682]
[1766785986663,0.01144,87608.0,87591.0,0.01141669]
[1766785986871,0.44814315,87600.0,87591.0,0.01141669]
[1766785987472,0.44814315,87601.0,87600.0,0.000549]
[1766785987746,0.01144,87608.0,87601.0,0.00055]
[1766785988069,0.01144,87608.0,87596.0,0.11410836]
[1766785991204,0.44814315,87606.0,87596.0,0.11410836]
[1766785992966,0.01144,87608.0,87596.0,0.11410836]
[1766785996041,0.44814315,87606.0,87596.0,0.11410836]
[1766785997129,0.01144,87608.0,87596.0,0.11410836]
[1766785998650,0.01144,87608.0,87596.0,0.1255244]
[1766785998849,0.01144,87608.0,87596.0,0.0505244]
[1766785999058,0.01144,87608.0,87595.0,5.7e-07]
[1766785999259,0.01144,87608.0,87593.0,0.01141643]
[1766785999459,0.01144,87608.0,87595.0,0.01141617]
[1766786000221,0.01144,87608.0,87596.0,0.01141604]
[1766786000438,0.01144,87608.0,87595.0,0.01141617]
[1766786000843,0.01144,87608.0,87596.0,0.01141604]
[1766786002793,0.01144,87608.0,87594.0,0.0114163]
[1766786003441,0.01144,87608.0,87592.0,0.06849907]
[1766786003605,0.01144,87608.0,87593.0,0.01141643]
[1766786004166,0.01144,87608.0,87592.0,0.01141656]
[1766786004333,0.01144,87608.0,87591.0,0.01141669]
[1766786004542,0.01144,87608.0,87593.0,0.01141643]
[1766786005600,0.01144,87608.0,87595.0,0.01141617]
[1766786006623,0.01144,87608.0,87596.0,0.01141604]
[1766786008420,0.01144,87608.0,87597.0,0.01141591]
[1766786008641,0.01144,87608.0,87596.0,0.01141604]
[1766786010689,0.01144,87608.0,87593.0,0.07007]
[1766786010901,0.01144,87608.0,87596.0,0.11410836]
[1766786016428,0.01144,87608.0,87596.0,0.03910836]
[1766786017016,0.01144,87608.0,87592.0,0.01141656]
[1766786017232,0.01144,87608.0,87582.0,0.11410836]
[1766786017671,0.01144,87608.0,87593.0,0.01141643]
[1766786018968,0.01144,87608.0,87594.0,0.0114163]
[1766786019173,0.01144,87608.0,87593.0,0.01141643]
[1766786019674,0.01144,87608.0,87594.0,0.0114163]
[1766786019896,0.01144,87608.0,87593.0,0.01141643]
[1766786020099,0.01144,87608.0,87594.0,0.0114163]
[1766786020497,0.01144,87608.0,87590.0,0.06850065]
[1766786020498,0.01144,87608.0,87590.0,0.01141682]
[1766786020666,0.01144,87608.0,87591.0,0.01141669]
[1766786020864,0.01144,87608.0,87592.0,0.01141656]
[1766786021266,0.01144,87608.0,87591.0,0.01141669]
[1766786021584,0.01144,87608.0,87592.0,0.01141656]
[1766786022304,0.01144,87608.0,87589.0,0.01141695]
[1766786022462,0.02285448,87608.0,87589.0,0.07007]
[1766786022666,0.01144,87608.0,87589.0,0.07007]
[1766786022886,0.01141461,87607.0,87586.0,0.0799435]
[1766786023201,0.01141474,87606.0,87586.0,0.02285734]
[1766786023353,0.03883072,87606.0,87587.0,0.01141721]
[1766786023791,0.03883072,87606.0,87588.0,0.01141708]
[1766786025215,0.02285448,87608.0,87589.0,0.01141695]
[1766786025625,0.01144,87608.0,87589.0,0.01141695]
[1766786025858,0.01144,87608.0,87590.0,0.01141682]
[1766786026047,0.01144,87608.0,87591.0,0.01141669]
[1766786026604,0.01144,87608.0,87593.0,0.01141643]
[1766786029029,0.01144,87608.0,87594.0,0.0114163]
[1766786029231,0.01144,87608.0,87593.0,0.01141643]
[1766786029955,0.01144,87608.0,87592.0,0.01141656]
[1766786030117,0.01144,87608.0,87593.0,0.01141643]
[1766786030717,0.01144,87608.0,87592.0,0.01141656]
[1766786031340,0.01144,87608.0,87593.0,0.01141643]
[1766786031737,0.01144,87608.0,87592.0,0.01141656]
[1766786031940,0.01144,87608.0,87593.0,0.01141643]
[1766786032858,0.01144,87608.0,87594.0,0.0114163]
[1766786033635,0.01144,87608.0,87592.0,0.01141656]
[1766786033960,0.01144,87608.0,87593.0,0.01141643]
[1766786034182,0.01144,87608.0,87592.0,0.01141656]
[1766786034695,0.01144,87608.0,87593.0,0.01141643]
[1766786035120,0.01144,87608.0,87595.0,0.01141617]
[1766786035514,0.01144,87608.0,87594.0,0.0114163]
[1766786035819,0.01144,87608.0,87595.0,0.01141617]
[1766786036853,0.01144,87608.0,87593.0,0.01141643]
[1766786037068,0.01144,87608.0,87594.0,0.0114163]
[1766786037254,0.01144,87608.0,87593.0,0.01141643]
[1766786037524,0.01144,87608.0,87594.0,0.0114163]
[1766786038004,0.01144,87608.0,87595.0,0.01141617]
[1766786038152,0.01144,87608.0,87594.0,0.0114163]
[1766786040330,0.01144,87608.0,87593.0,0.01141643]
[1766786040752,0.01144,87608.0,87594.0,0.0114163]
[1766786040874,0.01144,87608.0,87595.0,0.01141617]
[1766786041224,0.01144,87608.0,87594.0,0.0114163]
[1766786041384,0.01144,87608.0,87593.0,0.01141643]
[1766786041576,0.01144,87608.0,87594.0,0.0114163]
[1766786041775,0.01144,87608.0,87595.0,0.01141617]
[1766786042185,0.01144,87608.0,87593.0,0.01141643]
[1766786042546,0.01144,87608.0,87594.0,0.0114163]
[1766786042733,0.01144,87608.0,87593.0,0.01141643]
[1766786043839,0.01144,87608.0,87594.0,0.0114163]
[1766786044411,0.01144,87608.0,87593.0,0.01141643]
[1766786044735,0.01144,87608.0,87594.0,0.0114163]
[1766786045091,0.01144,87608.0,87595.0,0.01141617]
[1766786047454,0.01144,87608.0,87594.0,0.0114163]
[1766786047659,0.01144,87608.0,87593.0,0.06849835]
[1766786047958,0.01144,87608.0,87594.0,0.0114163]
[1766786048657,0.01144,87608.0,87593.0,0.01141643]
[1766786048994,0.01144,87608.0,87594.0,0.0114163]
[1766786049131,0.01144,87608.0,87593.0,0.01141643]
[1766786049338,0.01144,87608.0,87594.0,0.0114163]
[1766786050990,0.01144,87608.0,87595.0,0.01141617]
[1766786051193,0.01144,87608.0,87594.0,0.0114163]
[1766786052194,0.01144,87608.0,87593.0,0.01141643]
[1766786052364,0.01144,87608.0,87594.0,0.0114163]
[1766786052766,0.01144,87608.0,87593.0,0.01141643]
[1766786053574,0.01144,87608.0,87594.0,0.0114163]
[1766786055205,0.01144,87608.0,87593.0,0.01141643]
[1766786055420,0.01144,87608.0,87594.0,0.0114163]
[1766786059371,0.01144,87608.0,87593.0,0.01141643]
[1766786061275,0.01144,87608.0,87595.0,0.01141617]
[1766786061502,0.01144,87608.0,87594.0,0.0114163]
[1766786062247,0.01144,87608.0,87595.0,0.01141617]
[1766786062996,0.01144,87608.0,87594.0,0.0114163]
[1766786064133,0.01144,87608.0,87596.0,0.01141604]
[1766786064336,0.01144,87608.0,87597.0,0.01141591]
[1766786064680,0.01144,87608.0,87598.0,0.01141578]
[1766786065018,0.01144,87608.0,87597.0,0.01141591]
[1766786065162,0.01144,87608.0,87598.0,0.01141578]
[1766786065566,0.010891,87608.0,87599.0,0.13089794]
[1766786066598,0.010891,87608.0,87600.0,0.01141552]
[1766786066981,0.0002,87613.0,87600.0,0.01141552]
[1766786067203,0.01144,87612.0,87601.0,0.01141539]
[1766786068180,0.01144,87612.0,87602.0,0.01141526]
[1766786068181,0.01148894,87612.0,87602.0,0.01141526]
[1766786068433,0.01148894,87612.0,87601.0,0.01141539]
[1766786068635,0.01148894,87612.0,87602.0,0.01141526]
[1766786068814,0.01148894,87612.0,87603.0,0.01141513]
[1766786069134,0.01148894,87612.0,87605.0,0.01141487]
[1766786069300,0.0002,87613.0,87606.0,0.01141474]
[1766786069500,0.01144,87617.0,87608.0,0.0684868]
[1766786069697,0.01148898,87617.0,87609.0,0.01141435]
[1766786070642,0.01148898,87617.0,87610.0,0.01141422]
[1766786070847,4.898e-05,87617.0,87613.0,0.01141383]
[1766786071057,0.00774317,87619.0,87613.0,0.05706856]
[1766786071259,0.0002,87623.0,87613.0,0.05706856]
[1766786071438,0.01144,87622.0,87613.0,0.01141383]
[1766786071638,0.00024897,87623.0,87613.0,0.01141383]
[1766786071842,0.01144,87622.0,87613.0,0.01141383]
[1766786072041,0.000247,87613.0,87608.0,0.01141448]
[1766786072287,0.000247,87613.0,87607.0,0.07382]
[1766786073044,0.01144,87621.0,87608.0,0.01141448]
[1766786074576,0.01144,87621.0,87609.0,0.01141435]
[1766786075180,0.01144,87621.0,87608.0,0.01141448]
[1766786075357,0.01144,87621.0,87610.0,0.01141422]
[1766786075552,0.01144,87621.0,87609.0,0.01141435]
[1766786075894,0.01144,87621.0,87610.0,0.01141422]
[1766786076466,0.01144,87621.0,87608.0,0.06848641]
[1766786077091,0.01144,87621.0,87610.0,0.01141422]
[1766786077699,0.000247,87610.0,87607.0,0.08523461]
[1766786078190,0.01144,87621.0,87608.0,0.01141448]
[1766786078394,0.01144,87621.0,87607.0,0.08523461]
[1766786078590,0.01144,87621.0,87608.0,0.01141448]
[1766786078796,0.01144,87621.0,87607.0,0.08523461]
[1766786078997,0.01144,87621.0,87608.0,0.01141448]
[1766786079784,0.01144,87621.0,87607.0,0.08523461]
[1766786079982,0.01144,87621.0,87608.0,0.01141448]
[1766786080538,0.01144,87621.0,87607.0,0.08523461]
[1766786080912,0.01144,87621.0,87608.0,0.01141448]
[1766786081094,0.01144,87621.0,87607.0,0.08523461]
[1766786081485,0.01144,87621.0,87607.0,0.07382]
[1766786082321,0.01144,87621.0,87607.0,0.08523461]
[1766786085878,0.01144,87621.0,87607.0,0.07382]
[1766786086053,0.01144,87621.0,87607.0,0.08523461]
[1766786086859,0.01144,87621.0,87607.0,0.07382]
[1766786087067,0.01144,87621.0,87607.0,0.08523461]
[1766786087315,0.01144,87621.0,87609.0,0.01141435]
[1766786087517,0.01144,87621.0,87608.0,0.01141448]
[1766786087655,0.01144,87621.0,87607.0,0.07382]
[1766786087859,0.01144,87621.0,87607.0,0.08523461]
[1766786088077,0.01144,87621.0,87608.0,0.01141448]
[1766786088500,0.01144,87621.0,87609.0,0.01141435]
[1766786088834,0.01144,87621.0,87607.0,0.07382]
[1766786089796,0.01144,87621.0,87607.0,0.08523461]
[1766786090000,0.01144,87621.0,87608.0,0.01141448]
[1766786090199,0.01144,87621.0,87607.0,0.08523461]
[1766786090399,0.01144,87621.0,87608.0,0.01141448]
[1766786091352,0.01144,87621.0,87606.0,0.01141474]
[1766786091552,0.01144,87621.0,87607.0,0.01141461]
[1766786091778,0.01144,87621.0,87606.0,0.01141474]
[1766786091981,0.01144,87621.0,87607.0,0.01141461]
[1766786092165,0.01144,87621.0,87606.0,0.01141474]
[1766786092377,0.01144,87621.0,87607.0,0.01141461]
[1766786093161,0.01144,87621.0,87606.0,0.08301474]
[1766786093481,0.01144,87621.0,87607.0,0.01141461]
[1766786093792,0.01144,87621.0,87608.0,0.01141448]
[1766786095106,0.01144,87621.0,87607.0,0.01141461]
[1766786095834,0.01144,87621.0,87608.0,0.01141448]
[1766786096033,0.01144,87621.0,87607.0,0.01141461]
[1766786099203,0.01144,87621.0,87606.0,0.08301474]
[1766786099404,0.01144,87621.0,87607.0,0.01141461]
[1766786100132,0.01144,87621.0,87606.0,0.0716]
[1766786100683,0.01144,87621.0,87604.0,0.011415]
[1766786100684,0.01144,87622.0,87621.0,0.000302]
[1766786101222,0.01144,87622.0,87611.0,0.0716]
[1766786101435,0.01144,87622.0,87612.0,0.01141396]
[1766786101844,0.01144,87622.0,87613.0,0.01141383]
[1766786102046,0.01144,87622.0,87612.0,0.01141396]
[1766786102288,0.01144,87622.0,87613.0,0.01141383]
[1766786104527,0.01144,87622.0,87611.0,0.08301409]
[1766786104742,0.01144,87622.0,87612.0,0.01141396]
[1766786105293,0.01144,87622.0,87612.0,0.06848344]
[1766786105505,0.01144,87622.0,87613.0,0.08301383]
[1766786106076,0.01144,87622.0,87613.0,0.0716]
[1766786107353,0.011138,87622.0,87616.0,0.01141344]
[1766786107552,0.011138,87622.0,87615.0,0.0716]
[1766786109394,0.00024897,87623.0,87615.0,0.0716]
[1766786109757,0.00024897,87623.0,87615.0,0.071051]
[1766786111916,0.00024897,87623.0,87608.0,0.01144]
[1766786112119,0.00024897,87623.0,87602.0,0.01141526]
[1766786112120,0.00055,87608.0,87602.0,0.06174793]
[1766786112279,0.01141344,87616.0,87600.0,0.06174793]
[1766786112495,0.02285331,87617.0,87600.0,0.06174793]
[1766786112928,0.02285331,87617.0,87599.0,0.06174793]
[1766786113087,0.01144,87617.0,87599.0,0.07316358]
[1766786113284,0.01144,87617.0,87600.0,0.01141552]
[1766786114793,0.01144,87617.0,87601.0,0.01141539]
[1766786114948,0.01144,87617.0,87600.0,0.01141552]
[1766786115362,0.01144,87617.0,87603.0,0.01141513]
[1766786115746,0.01144,87617.0,87601.0,0.01141539]
[1766786115945,0.01144,87617.0,87600.0,0.01141552]
[1766786116146,0.01144,87617.0,87599.0,0.01141565]
[1766786118112,0.02285331,87617.0,87598.0,0.14476371]
[1766786118287,0.02285331,87617.0,87599.0,0.01141565]
[1766786119048,0.02285331,87617.0,87598.0,0.14476371]
[1766786119214,0.02285331,87617.0,87599.0,0.01141565]
[1766786119409,0.0114137,87614.0,87598.0,0.13334793]
[1766786119750,0.01141357,87615.0,87598.0,0.0716]
[1766786119972,0.07992042,87617.0,87598.0,0.0716]
[1766786119973,0.01141344,87616.0,87598.0,0.0716]
[1766786120154,0.01141357,87615.0,87598.0,0.0716]
[1766786120334,0.01141344,87616.0,87598.0,0.0716]
[1766786121307,0.01141357,87615.0,87598.0,0.0716]
[1766786121637,0.01141357,87615.0,87597.0,0.18729629]
[1766786121638,0.01141396,87612.0,87597.0,0.18729629]
[1766786121848,0.0114137,87614.0,87597.0,0.18729629]
[1766786122033,0.06848179,87615.0,87597.0,0.18729629]
[1766786122034,0.01141357,87615.0,87597.0,0.18729629]
[1766786122238,0.01255508,87616.0,87597.0,0.18729629]
[1766786122442,0.01255508,87616.0,87597.0,0.1987122]
[1766786122870,0.01141357,87615.0,87597.0,0.18729629]
[1766786123453,0.01255508,87616.0,87597.0,0.1987122]
[1766786123671,0.01141344,87616.0,87597.0,0.1987122]
[1766786123874,0.01141357,87615.0,87597.0,0.1987122]
[1766786124325,0.01141357,87615.0,87597.0,0.18729629]
[1766786124472,0.01141344,87616.0,87597.0,0.18729629]
[1766786124658,0.01141344,87616.0,87597.0,0.1987122]
[1766786124843,0.01141357,87615.0,87597.0,0.18729629]
[1766786125197,0.01141344,87616.0,87597.0,0.1987122]
[1766786125415,0.01141357,87615.0,87597.0,0.12554836]
[1766786125827,0.01141344,87616.0,87597.0,0.12554836]
[1766786126207,0.07992042,87617.0,87597.0,0.12554836]
[1766786126208,0.07992042,87617.0,87597.0,0.19472836]
[1766786126426,0.01141344,87616.0,87597.0,0.20614427]
[1766786126601,0.01141357,87615.0,87597.0,0.19472836]
[1766786126784,0.01141344,87616.0,87597.0,0.20614427]
[1766786127190,0.01141357,87615.0,87597.0,0.20614427]
[1766786127463,0.07992042,87617.0,87597.0,0.20614427]
[1766786127667,0.01141357,87615.0,87597.0,0.20614427]
[1766786127896,0.07992042,87617.0,87598.0,0.01141578]
[1766786128081,0.01141344,87616.0,87597.0,0.19472836]
[1766786128288,0.02285331,87617.0,87598.0,0.01141578]
[1766786128433,0.01141344,87616.0,87597.0,0.20614427]
[1766786129180,0.04342367,87617.0,87598.0,0.01141578]
[1766786129338,0.04342367,87617.0,87597.0,0.20614427]
[1766786129544,0.01141344,87616.0,87598.0,0.01141578]
[1766786130375,0.01141344,87616.0,87597.0,0.20614427]
[1766786130684,0.02285331,87617.0,87598.0,0.01141578]
[1766786130882,0.01141344,87616.0,87597.0,0.19472836]
[1766786131490,0.01141357,87615.0,87597.0,0.19472836]
[1766786132574,0.0114137,87614.0,87597.0,0.19472836]
[1766786132775,0.01141357,87615.0,87597.0,0.18972836]
[1766786133179,0.0114137,87614.0,87597.0,0.18972836]
[1766786133398,0.01141357,87615.0,87597.0,0.18972836]
[1766786133599,0.0114137,87614.0,87597.0,0.18972836]
[1766786133927,0.01141357,87615.0,87597.0,0.18972836]
[1766786134130,0.0114137,87614.0,87597.0,0.18972836]
[1766786135748,0.01141357,87615.0,87597.0,0.18972836]
[1766786136100,0.0114137,87614.0,87597.0,0.18972836]
[1766786136305,0.0114137,87614.0,87597.0,0.12054836]
[1766786136519,0.01141357,87615.0,87597.0,0.12054836]
[1766786137597,0.0114137,87614.0,87597.0,0.12054836]
[1766786137799,0.01141357,87615.0,87597.0,0.12054836]
[1766786138907,0.06848162,87615.0,87597.0,0.12054836]
[1766786139127,0.0114137,87614.0,87597.0,0.12054836]
[1766786139547,0.01141396,87612.0,87592.0,0.02285656]
[1766786139752,0.01141396,87612.0,87593.0,0.06918]
[1766786140300,0.01141396,87612.0,87593.0,0.08059643]
[1766786140680,0.01141396,87612.0,87593.0,0.06918]
[1766786140829,0.01141409,87611.0,87593.0,0.06918]
[1766786141237,0.01141383,87613.0,87593.0,0.08059643]
[1766786141435,0.0114137,87614.0,87594.0,0.0805963]
[1766786141640,0.06848256,87614.0,87594.0,0.0805963]
[1766786142541,0.01141422,87610.0,87594.0,0.06918]
[1766786143588,0.01141396,87612.0,87594.0,0.06918]
[1766786143746,0.06848415,87612.0,87594.0,0.06918]
[1766786144087,0.01141409,87611.0,87594.0,0.06918]
[1766786145390,0.01255586,87610.0,87594.0,0.06918]
[1766786146194,0.00114164,87610.0,87594.0,0.06918]
[1766786146587,0.01255586,87610.0,87594.0,0.06918]
[1766786147342,0.03127779,87610.0,87594.0,0.06918]
[1766786147583,0.01144,87609.0,87594.0,0.06918]
[1766786148905,0.01141448,87608.0,87594.0,0.06918]
[1766786150299,0.02285435,87609.0,87594.0,0.06918]
[1766786151082,0.01144,87609.0,87594.0,0.06918]
[1766786151286,0.02285435,87609.0,87595.0,0.03429741]
[1766786152412,0.01144,87609.0,87595.0,0.03429741]
[1766786152615,0.02285435,87609.0,87595.0,0.03429741]
[1766786152829,0.01144,87609.0,87595.0,0.03429741]
[1766786153413,0.01141448,87608.0,87595.0,0.03429741]
[1766786154021,0.0114163,87594.0,87575.0,0.07165]
[1766786154225,0.011418,87581.0,87576.0,0.0343031]
[1766786154456,0.01141852,87577.0,87570.0,1.2e-07]
[1766786154796,0.05709101,87580.0,87570.0,1.2e-07]
[1766786154797,0.01141826,87579.0,87570.0,1.2e-07]
[1766786155003,0.01141839,87578.0,87570.0,1.2e-07]
[1766786155240,0.03430926,87580.0,87570.0,1.2e-07]
[1766786155241,0.01144,87577.0,87570.0,4.91e-05]
[1766786155768,0.03997988,87577.0,87570.0,1e-07]
[1766786159140,0.011392,87577.0,87570.0,1e-07]
[1766786160353,0.01144,87577.0,87570.0,1e-07]
[1766786160554,0.01144,87577.0,87572.0,0.01141917]
[1766786160813,0.01144,87577.0,87573.0,0.07165]
[1766786160942,0.01144,87581.0,87573.0,0.07165]
[1766786161304,0.01089,87581.0,87573.0,0.07165]
[1766786161713,0.01144,87585.0,87578.0,0.08306839]
[1766786161879,0.03430659,87595.0,87578.0,0.08306839]
[1766786162070,0.01144,87594.0,87579.0,0.01141826]
[1766786162910,0.01144,87594.0,87580.0,0.01141813]
[1766786163111,0.01144,87594.0,87578.0,0.13799631]
[1766786163309,0.01144,87594.0,87580.0,0.01141813]
[1766786163545,0.03430659,87595.0,87581.0,0.011418]
[1766786163844,0.01144,87593.0,87582.0,0.07165]
[1766786164050,0.01144,87593.0,87582.0,0.08306787]
[1766786164613,0.01144,87593.0,87582.0,0.07165]
[1766786165041,0.01144,87593.0,87576.0,0.01141865]
[1766786165412,0.01144,87593.0,87577.0,0.01141852]
[1766786165622,0.02511816,87592.0,87577.0,0.01141852]
[1766786165816,0.02511816,87592.0,87575.0,0.14016209]
[1766786165817,0.02511816,87592.0,87575.0,0.08306878]
[1766786165997,0.02511816,87592.0,87576.0,0.01141865]
[1766786169478,0.02511816,87592.0,87575.0,0.08306878]
[1766786169875,0.02511816,87592.0,87575.0,0.07165]
[1766786170043,0.02511816,87592.0,87575.0,0.08306878]
[1766786170474,0.02511816,87592.0,87575.0,0.07165]
[1766786170877,0.02511816,87592.0,87575.0,0.08306878]
[1766786171554,0.03562147,87591.0,87575.0,0.01141878]
[1766786171761,0.000549,87575.0,87570.0,1e-07]
[1766786172060,0.01144,87578.0,87570.0,1e-07]
[1766786172180,0.02066134,87577.0,87570.0,1e-07]
[1766786173716,0.01144,87578.0,87570.0,1e-07]
[1766786174969,0.02285839,87578.0,87570.0,1e-07]
[1766786175174,0.00114164,87577.0,87570.0,1e-07]
[1766786175347,0.01144,87578.0,87570.0,1e-07]
[1766786180149,0.01144,87578.0,87558.0,0.06852588]
[1766786180347,0.01483864,87577.0,87561.0,0.0114206]
[1766786180598,0.01483864,87577.0,87564.0,0.01142021]
[1766786180779,0.01144,87578.0,87564.0,2.1e-07]
[1766786181117,0.01144,87578.0,87564.0,4.2e-07]
[1766786181271,0.01144,87578.0,87565.0,0.01142008]
[1766786181480,0.01144,87578.0,87564.0,0.01142063]
[1766786181913,0.01144,87578.0,87562.0,0.01142047]
[1766786182157,0.03625055,87578.0,87564.0,0.01142021]
[1766786183225,0.03625055,87578.0,87560.0,0.05710327]
[1766786183226,0.03431153,87582.0,87568.0,0.07136]
[1766786183475,0.05708493,87589.0,87483.0,0.26730471]
[1766786183476,0.11410836,87593.0,87574.0,0.05709427]
[1766786183680,0.03430784,87590.0,87580.0,0.07136]
[1766786183891,0.01144,87590.0,87580.0,0.07136]
[1766786185125,0.01144,87590.0,87580.0,0.05536]
[1766786192159,0.01144,87590.0,87580.0,0.04436]
[1766786196456,0.01144,87590.0,87578.0,0.01141839]
[1766786197968,0.01144,87590.0,87579.0,0.01141826]
[1766786199127,0.01144,87590.0,87578.0,0.08277839]
[1766786199329,0.01144,87590.0,87578.0,0.07136]
[1766786200430,0.01144,87590.0,87583.0,0.00022899]
[1766786204436,0.01144,87590.0,87578.0,0.06200738]
[1766786204659,0.01144,87590.0,87579.0,0.01141826]
[1766786205015,0.01144,87590.0,87578.0,0.06200738]
[1766786206577,0.01144,87590.0,87578.0,0.05058899]
[1766786206976,0.01144,87590.0,87578.0,0.06200738]
[1766786209602,0.01144,87590.0,87578.0,0.05058899]
[1766786210741,0.01144,87590.0,87578.0,0.06200738]